Cogmind - Beta 16 @@@ ROGUE MODE // 2025.10.31 @ 23:56:49 Player: daxter767676 Result: Destroyed by S-27 Virus with Autogun Performance ------------- Evolutions (3) 1500 Regions Visited (10) 2000 Robots Destroyed (67) 335 Value Destroyed (3089) 3089 Prototype IDs (31) 620 Alien Tech Used (0) 0 Bonus (2244) 2244 TOTAL SCORE: 9788 Bonus ------- High Alert Combat Kills 306 Follower Combat Kills 243 Entered Garrisons 400 Used RIF Installer 1000 Aligned with FarCom 300 Friendly Fire -5 Cogmind --------- Core Integrity 0/700 Matter 185/300 Energy 80/100 System Corruption 13% Temperature Cool (0) Movement Flying (245) Ox3 Location -7/Garrison Parts ------- > --- POWER (1) -------- (None) > --- PROPULSION (4) --- Improved VTOL Module > --- UTILITY (6) ------ Medium Storage Unit Relay Coupler [Grunt] (27) Relay Coupler [Brawler] (30) Relay Coupler [Sentry] (25) > --- WEAPON (2) ------- Shock Rifle Great Axe > --- INVENTORY (10) --- Light Angular Momentum Engine Surge Thruster Surge Thruster Relay Coupler [NC] (22) Relay Coupler [Specialist] (22) Relay Coupler [Behemoth] (12) Missile Launcher Peak State ------------ > --- POWER ------------ Improved Deuterium Engine > --- PROPULSION ------- Flying Fortress v7 > --- UTILITY ---------- Medium Storage Unit Terrain Scan Processor Improved Terrain Scan Processor Improved Terrain Scan Processor Transmission Jammer Active Sensor Spoofer > --- WEAPON ----------- Flak Gun Advanced Assault Cannon > --- INVENTORY -------- Light Angular Momentum Engine Surge Thruster Surge Thruster Surge Thruster Improved Terrain Scanner Reaction Control System Relay Coupler [Grunt] Relay Coupler [Brawler] Relay Coupler [Sentry] Missile Launcher [Rating: 67] Favorites ----------- Power Light Nuclear Core Engine Improved Deuterium Engine Power Core Light Nuclear Core Propulsion Surge Thruster Leg Aluminum Leg Wheel Wheel Flight Unit Surge Thruster Utility Terrain Scan Processor Device Transmission Jammer Storage Medium Storage Unit Processor Terrain Scan Processor Hackware Relay Coupler [Grunt] Weapon Heavy Hammer Energy Gun Small Laser Energy Cannon Advanced Beam Cannon Ballistic Gun Flak Gun Ballistic Cannon Heavy Mass Driver Launcher Mini Grenade Launcher Special Weapon Remote Datajack Impact Weapon Heavy Hammer Slashing Weapon Katana Build | -11 -10 -9 -9 -9 -8 -8 -7 -7 -7 -7 ------- Run | Yrd Mat Mat Min Exi Min Mat Fac Gar Fac Gar Slots Evolved 6 | . . 2 . . . 2 2 . . . Power . | . . . . . . . . . . . Propulsion 2 | . . . . . . 2 . . . . Utility 4 | . . 2 . . . . 2 . . . Weapon . | . . . . . . . . . . . Parts Attached 58 | 1 4 14 . 2 . 6 3 15 9 4 Power 8 | . 1 3 . . . 1 . 3 . . Engine 5 | . 1 2 . . . 1 . 1 . . Core 3 | . . 1 . . . . . 2 . . Reactor . | . . . . . . . . . . . Propulsion 15 | . . 4 . . . 1 . 6 4 . Treads . | . . . . . . . . . . . Leg 2 | . . 2 . . . . . . . . Wheel 1 | . . . . . . . . . 1 . Hover . | . . . . . . . . . . . Flight 12 | . . 2 . . . 1 . 6 3 . Utility 17 | 1 1 5 . 1 . 2 2 2 . 3 Device 6 | 1 . 1 . . . . 2 2 . . Storage 2 | . 1 . . 1 . . . . . . Processor 6 | . . 4 . . . 2 . . . . Hackware 3 | . . . . . . . . . . 3 Protection . | . . . . . . . . . . . Artifact . | . . . . . . . . . . . Weapon 18 | . 2 2 . 1 . 2 1 4 5 1 Energy Gun 4 | . 1 1 . . . . . . 1 1 Energy Cannon 1 | . . 1 . . . . . . . . Ballistic Gun 3 | . . . . . . . . 2 1 . Ballistic Cannon 2 | . . . . . . . . 2 . . Launcher 2 | . . . . 1 . . . . 1 . Special Weapon 1 | . . . . . . . . . 1 . Impact Weapon 1 | . 1 . . . . . . . . . Slashing Weapon 4 | . . . . . . 2 1 . 1 . Piercing Weapon . | . . . . . . . . . . . Special Melee Weapon . | . . . . . . . . . . . Unidentified Prototypes 7 | . . 4 . . . . . 1 2 . Corrupted Parts 1 | . . . . . . . . . 1 . System Corruption 7 | . . . . . . . . . 7 . Parts Lost 10 | . . . . . . . . 3 . 7 Power 1 | . . . . . . . . . . 1 Propulsion 4 | . . . . . . . . 1 . 3 Utility 3 | . . . . . . . . 1 . 2 Weapon 2 | . . . . . . . . 1 . 1 Highest Loss Streak 7 | . . . . . . . . 1 . 7 To Critical Strikes . | . . . . . . . . . . . Average Backups 8 | 6 9 9 5 3 6 9 9 9 10 7 Power 1 | 1 . . 1 . 1 2 3 1 1 1 Propulsion 2 | 4 3 2 3 2 4 4 5 2 1 2 Utility 3 | . 2 4 . . 1 1 . 5 6 3 Weapon 1 | 1 2 1 1 . . 1 1 1 . 1 Tool/Special . | . . . . . . . . . . . Unused Backups 27 | 6 2 7 . . . . 1 5 2 4 Power 6 | 1 . 1 . . . . 1 2 . 1 Propulsion 9 | 2 2 3 . . . . . 2 . . Utility 9 | 1 . 2 . . . . . 1 2 3 Weapon 3 | 2 . 1 . . . . . . . . Tool/Special . | . . . . . . . . . . . Average Slot Usage (%) 84 | . 100 99 88 97 95 70 68 76 85 83 Engine 5 | . 14 9 . . . 8 7 6 . . Core 2 | . . 1 11 11 11 . . . 7 4 Leg 5 | . 28 21 . . . . . . . . Flight 12 | . . . 22 22 22 9 7 12 27 23 Device 10 | . 14 11 11 5 . . 6 14 15 10 Storage 8 | . 14 10 . 5 11 9 7 7 7 7 Processor 20 | . . 22 33 33 33 27 23 23 16 . Energy Gun 1 | . 17 2 . . . . . . . . Energy Cannon 1 | . . 8 . . . . . . . . Ballistic Gun 1 | . . . . . . . . 3 . . Ballistic Cannon 2 | . . . . . . . . 5 4 . Impact Weapon 3 | . 10 11 11 11 11 1 . . . . Slashing Weapon 2 | . . . . . . 14 15 1 . 7 Peak Build Rating 67 | 8 9 24 21 25 24 53 62 67 47 44 Average Rating 38 | 6 8 15 21 23 23 51 55 56 40 37 On Entrance 27 | 6 8 9 21 21 24 22 53 62 46 35 Avg Prop Armor Cover (%) 12 | . . . . . . . . . 12 . Naked Turns . | . . . . . . . . . . . Heaviest Build 42 | 14 20 23 9 19 19 23 26 42 37 24 Greatest Support 50 | 20 20 20 10 10 10 50 50 50 20 20 Greatest Overweight (x) 4 | . . 4 . 1 1 . . 4 3 1 Average Overweight (x) . | . . . . . 1 . . . 1 . Largest Inventory Capacity 10 | 8 10 10 5 10 10 10 10 10 10 10 Average Capacity 9 | 8 9 9 5 7 10 10 10 10 10 10 Most Carried 10 | 8 10 10 5 9 10 10 10 10 10 9 Average Carried 9 | 6 9 9 5 6 9 9 9 9 9 7 Final Capacity 10 | 8 10 5 5 10 10 10 10 10 10 10 Final Carried 10 | 8 10 5 5 9 10 10 10 10 10 7 Class Distribution -------------------- 41% | Mutant 21% | Scavenger-Mutant 20% | Scavenger-Skirmisher 8% | Scout 3% | Bothacker-Mutant Dominant Class ---------------- Mutant | -10/Materials Scavenger-Mutant | -9/Materials Mutant | -9/Mines Mutant | -9/Exiles Mutant | -8/Mines Mutant | -8/Materials Scout | -7/Factory Scavenger-Skirmisher | -7/Garrison Scavenger-Skirmisher | -7/Factory Bothacker-Assassin | -7/Garrison Resources | -11 -10 -9 -9 -9 -8 -8 -7 -7 -7 -7 ----------- Run | Yrd Mat Mat Min Exi Min Mat Fac Gar Fac Gar Matter Collected 1781 | 210 40 130 . 70 . 70 40 1141 31 49 Remotely . | . . . . . . . . . . . Salvage Created 1990 | 101 132 564 . . . 131 116 789 29 128 Parts 109 | 11 6 25 . . . 8 5 41 7 6 Haulers Intercepted 1 | . . 1 . . . . . . . . Recyclers Shooed . | . . . . . . . . . . . Parts Field Recycled . | . . . . . . . . . . . Retrieved Matter . | . . . . . . . . . . . Parts Self-Destructed . | . . . . . . . . . . . Prevented . | . . . . . . . . . . . Parts Restored . | . . . . . . . . . . . Kills | -11 -10 -9 -9 -9 -8 -8 -7 -7 -7 -7 ------- Run | Yrd Mat Mat Min Exi Min Mat Fac Gar Fac Gar Combat Hostiles Destroyed 54 | . 5 16 . . . 3 1 24 1 4 Melee 28 | . 2 11 . . . 3 1 7 . 4 Guns 10 | . 2 1 . . . . . 7 . . Cannons 13 | . . 3 . . . . . 10 . . AOE 1 | . . . . . . . . . 1 . Classes Destroyed 12 | 1 2 3 . . . 1 1 2 2 . Worker 1 | . . . . . . . . . 1 . Tunneler 6 | 5 1 . . . . . . . . . Hauler 1 | . . 1 . . . . . . . . Recycler 2 | . . 1 . . . . 1 . . . Operator 1 | . . . . . . . . . 1 . Watcher 2 | . . . . . . . . 2 . . Swarmer 18 | . 3 8 . . . . . 3 1 3 Cutter 2 | . . . . . . . . 2 . . Grunt 25 | . 2 7 . . . 2 . 14 . . Sentry 5 | . . 1 . . . . . 4 . . Hunter 1 | . . . . . . 1 . . . . Programmer 3 | . . . . . . . 1 1 . 1 Best Kill Streak 12 | 2 2 12 . . . 2 2 6 1 3 Combat Bots Only 11 | . 2 11 . . . 2 1 6 1 3 Max Kills in Single Turn 1 | 1 1 1 . . . 1 1 1 1 1 Gunslinging . | . . . . . . . . . . . Exploded 1 | . . . . . . . . . 1 . Melee 1 | . 1 1 . . . 1 1 1 . 1 Uniques/NPCs Destroyed . | . . . . . . . . . . . Combat | -11 -10 -9 -9 -9 -8 -8 -7 -7 -7 -7 -------- Run | Yrd Mat Mat Min Exi Min Mat Fac Gar Fac Gar Hostile Shots Fired 378 | . 20 59 . . . 23 4 204 2 66 Missed 133 | . 6 17 . . . 11 2 86 . 11 Hits 245 | . 14 42 . . . 12 2 118 2 55 Melee 4 | . . . . . . . . 4 . . Projectile 241 | . 14 42 . . . 12 2 114 2 55 Critical Strikes 10 | . . 2 . . . 1 . 4 . 3 Damage Taken 3130 | 19 150 382 . . . 165 31 1506 34 843 Core 861 | . 24 89 . . . 39 . 231 17 461 Absorbed by Shields . | . . . . . . . . . . . Regen/Repaired (Parts) 13 | . . . . . . . 13 . . . Core Remaining (%) 89 | 100 90 . . . 77 92 . . . . Volleys Fired 125 | 10 2 14 . . . . . 94 4 1 Largest 2 | 2 2 1 . . . . . 2 1 1 Hottest 80 | 80 80 68 . . . . . 68 65 5 Shots Fired 186 | 20 4 14 . . . . . 143 4 1 Gun 81 | 20 4 4 . . . . . 53 . . Cannon 103 | . . 10 . . . . . 90 3 . Launcher 1 | . . . . . . . . . 1 . Special 1 | . . . . . . . . . . 1 Kinetic 146 | . . . . . . . . 143 3 . Thermal 26 | 10 2 14 . . . . . . . . Explosive 1 | . . . . . . . . . 1 . Electromagnetic 12 | 10 2 . . . . . . . . . Robot Hit Streak 22 | 3 4 4 . . . . . 22 4 5 Robot Miss Streak 5 | 3 1 2 . . . . . 5 . . Penetration Max . | . . . . . . . . . . . Secondary Targets . | . . . . . . . . . . . Shots Hit Robots 194 | 11 12 27 . . . 6 3 120 3 12 Core Hits 124 | 5 4 12 . . . 3 1 92 3 4 Critical Kills 1 | . . 1 . . . . . . . . Critical Parts Destroyed 4 | . 1 3 . . . . . . . . Critical Strikes 15 | . 1 4 . . . . . 9 . 1 Blast 8 | . . . . . . . . 8 . . Smash 5 | . 1 4 . . . . . . . . Sever 2 | . . . . . . . . 1 . 1 Melee Attacks 109 | . 15 29 . . . 18 6 19 . 22 Impact 46 | . 15 29 . . . 2 . . . . Slashing 63 | . . . . . . 16 6 19 . 22 Piercing . | . . . . . . . . . . . Sneak Attacks 4 | . 1 2 . . . . 1 . . . Combat Hostiles . | . . . . . . . . . . . Follow-up Attacks . | . . . . . . . . . . . Damage Inflicted 6265 | 199 379 958 . . . 196 119 3758 235 421 Guns 1002 | 112 24 39 . . . . . 827 . . Cannons 2737 | . . 185 . . . . . 2407 145 . Explosions 177 | 87 . . . . . . . . 90 . Melee 2349 | . 355 734 . . . 196 119 524 . 421 Ramming . | . . . . . . . . . . . Kinetic 3379 | . . . . . . . . 3234 145 . Thermal 345 | 109 12 224 . . . . . . . . Explosive 47 | . . . . . . . . . 47 . Electromagnetic 145 | 90 12 . . . . . . . 43 . Impact 1160 | . 355 734 . . . 71 . . . . Slashing 1189 | . . . . . . 125 119 524 . 421 Piercing . | . . . . . . . . . . . Highest Corruption 13 | . . . . . . . . . 7 13 Average Corruption 8 | . . . . . . . . . 7 8 Corruption Purged . | . . . . . . . . . . . Corruption Blocked . | . . . . . . . . . . . Effects 7 | . . . . . . . . . 1 6 Message Errors 1 | . . . . . . . . . . 1 Matter Fused 1 | . . . . . . . . . . 1 Heat Flow Errors 3 | . . . . . . . . . 1 2 Energy Discharges 1 | . . . . . . . . . . 1 Parts Rejected 1 | . . . . . . . . . . 1 Overload Shots . | . . . . . . . . . . . Overflow Damage 540 | . 101 263 . . . 11 31 60 52 22 Projectiles 95 | . . . . . . . . 43 52 . Explosions . | . . . . . . . . . . . Melee 445 | . 101 263 . . . 11 31 17 . 22 Knockbacks 11 | . . 2 . . . . . 9 . . Impact 2 | . . 2 . . . . . . . . Kinetic 9 | . . . . . . . . 9 . . Secondary . | . . . . . . . . . . . Self-Inflicted Damage 25 | 19 . . . . . . . . 6 . Shots 2 | 1 . . . . . . . . 1 . Rammed . | . . . . . . . . . . . Targets Rammed . | . . . . . . . . . . . Kicked . | . . . . . . . . . . . Crushed . | . . . . . . . . . . . Highest Temperature 236 | 54 36 175 . . . . . 139 236 172 Average Temperature 41 | 22 20 63 . . . . . 36 89 72 Received Heat Transfer 624 | . 57 78 . . . 54 . 435 . . Siege Activations . | . . . . . . . . . . . Martial Activations . | . . . . . . . . . . . Shielding Activations . | . . . . . . . . . . . Robots Disrupted . | . . . . . . . . . . . Combat Hostiles . | . . . . . . . . . . . Robots Corrupted 3 | . 1 2 . . . . . . . . Combat Hostiles 2 | . 1 1 . . . . . . . . Parts Fried 13 | . 8 5 . . . . . . . . Impact Corruptions 15 | . 5 9 . . . 1 . . . . Robots Melted . | . . . . . . . . . . . Combat Hostiles . | . . . . . . . . . . . Parts Melted 1 | . . 1 . . . . . . . . Heat Transferred 519 | 50 25 444 . . . . . . . . Parts Sabotaged . | . . . . . . . . . . . Parts Stolen . | . . . . . . . . . . . Parts Stripped . | . . . . . . . . . . . Power Chain Reactions 2 | 2 . . . . . . . . . . Alert | -11 -10 -9 -9 -9 -8 -8 -7 -7 -7 -7 ------- Run | Yrd Mat Mat Min Exi Min Mat Fac Gar Fac Gar Maximum Alert Level 4 | . . 1 . . . . . 4 2 1 Low Security (%) 33 | 100 100 8 100 . 100 100 100 10 . . Level 1 25 | . . 91 . . . . . 16 1 100 Level 2 19 | . . . . . . . . 17 98 . Level 3 13 | . . . . . . . . 36 . . Level 4 7 | . . . . . . . . 18 . . Level 5 . | . . . . . . . . . . . High Security . | . . . . . . . . . . . Max Security . | . . . . . . . . . . . Peak Influence 1198 | 10 70 345 83 . . 96 55 1198 633 326 Initial 628 | . . 3 83 . . . 25 30 628 294 Average 394 | 2 22 269 78 . . 35 29 695 503 292 Influence Increases 2500 | 25 192 539 . . . 212 98 1238 94 102 Destroy 0b10 Robot/C 1200 | . 100 320 . . . 60 20 600 40 60 Destroy 0b10 Robot/NC 75 | 25 5 10 . . . . 5 20 10 . Destroy Leader 168 | . 20 52 . . . 20 10 40 10 16 Allied During Kill 24 | . . . . . . . . 22 2 . Successful Hack 52 | . 6 5 . . . 4 16 21 . . Select Force Hacks 60 | . . . . . . 30 30 . . . Disable Machine 60 | . 15 15 . . . . . . 30 . Anti-Garrison Action 400 | . . . . . . . . 400 . . Destroy Structure 92 | . 1 2 . . . 8 2 75 2 2 Partial Spotted 15 | . . . . . . . 15 . . . Lose Combat Pursuer 354 | . 45 135 . . . 90 . 60 . 24 Influence Decreases 2174 | 25 184 332 142 73 . 155 112 83 872 196 Entered New Map 951 | . . 5 132 73 . . 32 13 570 126 Time Decay 1003 | 25 144 327 10 . . 155 80 . 262 . Lost Part 100 | . . . . . . . . 30 . 70 Lost Ally 80 | . . . . . . . . 40 40 . Purge Threat 40 | . 40 . . . . . . . . . Squads Dispatched 7 | . . 1 . . . 3 1 . 2 . Investigation 2 | . . . . . . 1 1 . . . Extermination 2 | . . . . . . . . . 2 . Reinforcement 3 | . . 1 . . . 2 . . . . Assault . | . . . . . . . . . . . Garrison . | . . . . . . . . . . . Intercept . | . . . . . . . . . . . Searches Triggered . | . . . . . . . . . . . Construction Impeded . | . . . . . . . . . . . Haulers Reinforced . | . . . . . . . . . . . Active Scanning Responses . | . . . . . . . . . . . Cargo Convoy Interrupts . | . . . . . . . . . . . Stealth | -11 -10 -9 -9 -9 -8 -8 -7 -7 -7 -7 --------- Run | Yrd Mat Mat Min Exi Min Mat Fac Gar Fac Gar Distress Signals 2 | . 1 1 . . . . . . . . Communications Jammed 9 | . . . . . . . . 9 . . Distress Signals 9 | . . . . . . . . 9 . . Times Spotted 88 | . 9 31 . . . 10 1 27 1 9 Peak Tracking Total 8 | . 3 8 . . . 7 1 8 1 7 Tactical Retreats 11 | . 2 4 . . . 2 . 2 . 1 Traps | -11 -10 -9 -9 -9 -8 -8 -7 -7 -7 -7 ------- Run | Yrd Mat Mat Min Exi Min Mat Fac Gar Fac Gar Traps Triggered 4 | . . . . . . . . 4 . . Indirectly . | . . . . . . . . . . . Trap Hack Attempts . | . . . . . . . . . . . Triggered . | . . . . . . . . . . . Disarmed . | . . . . . . . . . . . Reprogrammed . | . . . . . . . . . . . Reused . | . . . . . . . . . . . Traps Extracted . | . . . . . . . . . . . Installed . | . . . . . . . . . . . Triggered . | . . . . . . . . . . . Machines | -11 -10 -9 -9 -9 -8 -8 -7 -7 -7 -7 ---------- Run | Yrd Mat Mat Min Exi Min Mat Fac Gar Fac Gar Machines Disabled 9 | . 1 1 . . . . . 5 2 . Max in Single Turn 2 | . 1 1 . . . . . 1 2 . Garrison Relay 5 | . . . . . . . . 5 . . Machines Repaired . | . . . . . . . . . . . Machines Dismantled . | . . . . . . . . . . . Machines Sabotaged . | . . . . . . . . . . . Overloaded Fab Kills . | . . . . . . . . . . . Hacking | -11 -10 -9 -9 -9 -8 -8 -7 -7 -7 -7 --------- Run | Yrd Mat Mat Min Exi Min Mat Fac Gar Fac Gar Machines Accessed 25 | . 5 4 . 4 . 2 3 4 3 . Terminals 16 | . 5 4 . . . 1 . 4 2 . Fabricators . | . . . . . . . . . . . Repair Stations 1 | . . . . . . . 1 . . . Recycling Units 2 | . . . . . . 1 1 . . . Scanalyzers . | . . . . . . . . . . . Garrison Access 2 | . . . . . . . 1 . 1 . Total Hacks 82 | . 15 12 . 27 . 6 7 9 6 . Successful 56 | . 8 6 . 27 . 4 4 3 4 . Failed 26 | . 7 6 . . . 2 3 6 2 . Catastrophic 2 | . 2 . . . . . . . . . Database Lockouts . | . . . . . . . . . . . Manual 29 | . 12 6 . 1 . 6 2 . 2 . Terminals 45 | . 15 12 . . . 5 . 9 4 . Fabricators . | . . . . . . . . . . . Repair Stations 4 | . . . . . . . 4 . . . Recycling Units 3 | . . . . . . 1 2 . . . Scanalyzers . | . . . . . . . . . . . Garrison Access 3 | . . . . . . . 1 . 2 . Terminal Hacks 34 | . 2 2 . 27 . . . 3 . . Record 26 | . . . . 26 . . . . . . Prototype ID Bank 1 | . . 1 . . . . . . . . Open Door 1 | . . . . . . . . 1 . . Emergency Access Points 1 | . . . . . . . . 1 . . Unreport Threat 2 | . 2 . . . . . . . . . Locate Traps 1 | . . 1 . . . . . . . . Patrol Navigation 1 | . . . . . . . . 1 . . Proto ID Catalog 1 | . . . . 1 . . . . . . Fabricator Hacks . | . . . . . . . . . . . Repair Station Hacks 2 | . . . . . . . 2 . . . Scan Component 1 | . . . . . . . 1 . . . Repair 1 | . . . . . . . 1 . . . Recycling Unit Hacks . | . . . . . . . . . . . Scanalyzer . | . . . . . . . . . . . Garrison Access Hacks 3 | . . . . . . . 1 . 2 . Unlock Access 2 | . . . . . . . 1 . 1 . Coupler Status 1 | . . . . . . . . . 1 . Unauthorized Hacks 17 | . 6 4 . . . 4 1 . 2 . Terminals 15 | . 6 4 . . . 3 . . 2 . Track 2 | . 1 . . . . 1 . . . . Botnet 7 | . 3 2 . . . 1 . . 1 . Skim 6 | . 2 2 . . . 1 . . 1 . Fabricators . | . . . . . . . . . . . Repair Stations . | . . . . . . . . . . . Recycling Units 2 | . . . . . . 1 1 . . . Tunnel 2 | . . . . . . 1 1 . . . Scanalyzers . | . . . . . . . . . . . Garrison Access . | . . . . . . . . . . . Data Cores Recovered 1 | . . . . . . . . . 1 . Used 1 | . . . . . . . . . 1 . Hacking Detections 18 | . 5 4 . . . 1 2 3 3 . Full Trace Events 2 | . . 1 . . . . . 1 . . Feedback Events . | . . . . . . . . . . . Feedback Blocked . | . . . . . . . . . . . Robot Schematics Acquired . | . . . . . . . . . . . Robots Built . | . . . . . . . . . . . Authchips . | . . . . . . . . . . . Time . | . . . . . . . . . . . Total Robot Build Rating . | . . . . . . . . . . . Part Schematics Acquired . | . . . . . . . . . . . Parts Built . | . . . . . . . . . . . Authchips . | . . . . . . . . . . . Time . | . . . . . . . . . . . Total Part Build Rating . | . . . . . . . . . . . Part Studies Acquired . | . . . . . . . . . . . Parts Repaired 1 | . . . . . . . 1 . . . Time 38 | . . . . . . . 38 . . . Parts Recycled . | . . . . . . . . . . . Recycled Matter . | . . . . . . . . . . . Retrieved Matter . | . . . . . . . . . . . Retrieved Components . | . . . . . . . . . . . Parts Scanalyzed . | . . . . . . . . . . . Part Schematics Acquired . | . . . . . . . . . . . Parts Damaged . | . . . . . . . . . . . Bothacking | -11 -10 -9 -9 -9 -8 -8 -7 -7 -7 -7 ------------ Run | Yrd Mat Mat Min Exi Min Mat Fac Gar Fac Gar Used RIF Installer 2 | . . . . . . . . 1 . 1 Threat Obfuscator 1 | . . . . . . . . . . 1 Robots Hacked 1 | . . . . . . . . . . 1 Non-combat . | . . . . . . . . . . . Combat 1 | . . . . . . . . . . 1 Robot Hacks Applied 1 | . . . . . . . . . . 1 parse_system 1 | . . . . . . . . . . 1 Relay Couplers Released 23 | . . . . . . . . 23 . . Machine Destruction 19 | . . . . . . . . 19 . . Programmers 4 | . . . . . . . . 4 . . Attached 3 | . . . . . . . . . . 3 Fabnet Peak Effective % . | . . . . . . . . . . . Robots Rewired 2 | . . . . . . . . 2 . . Allies Hacked . | . . . . . . . . . . . Hacks Repelled . | . . . . . . . . . . . Allies | -11 -10 -9 -9 -9 -8 -8 -7 -7 -7 -7 -------- Run | Yrd Mat Mat Min Exi Min Mat Fac Gar Fac Gar Total Allies 4 | . . . . . . . . 4 . . Largest Group 2 | . . . . . . . . 2 2 . Highest-Rated Group 124 | . . . . . . . . 124 56 . Highest-Rated Ally 62 | . . . . . . . . 62 31 . Total Orders . | . . . . . . . . . . . Ally Attacks 38 | . . . . . . . . 31 7 . Total Damage 835 | . . . . . . . . 750 85 . Kills 7 | . . . . . . . . 6 1 . Allies Corrupted . | . . . . . . . . . . . Allies Melted . | . . . . . . . . . . . Intel | -11 -10 -9 -9 -9 -8 -8 -7 -7 -7 -7 ------- Run | Yrd Mat Mat Min Exi Min Mat Fac Gar Fac Gar Active Infowar (turns) 3926 | 75 337 754 32 198 . . 137 1707 561 125 Terrain 2280 | . . 297 32 198 . . 137 944 561 111 Seismic 869 | 75 337 457 . . . . . . . . Spoofing 112 | . . . . . . . . 112 . . Jamming 2416 | . . . . . . . 23 1707 561 125 Robot Analysis Total . | . . . . . . . . . . . Derelict Logs Recovered . | . . . . . . . . . . . Drone Launches . | . . . . . . . . . . . Drone Recoveries . | . . . . . . . . . . . Exploration | -11 -10 -9 -9 -9 -8 -8 -7 -7 -7 -7 ------------- Run | Yrd Mat Mat Min Exi Min Mat Fac Gar Fac Gar Turns Passed 4859 | 144 337 754 32 404 71 499 176 1707 561 174 Spaces Moved 3548 | 93 198 272 19 655 41 308 162 1359 363 78 Core . | . . . . . . . . . . . Treads . | . . . . . . . . . . . Legs 533 | 93 198 242 . . . . . . . . Wheels 83 | . . . . . . . . . 83 . Hover . | . . . . . . . . . . . Flight 2932 | . . 30 19 655 41 308 162 1359 280 78 Fastest Speed 32 | 120 120 37 37 37 107 50 50 50 85 32 Average Speed 82 | 120 120 160 37 57 107 50 50 73 110 101 Slowest Speed 320 | 120 120 320 37 107 107 50 50 189 142 105 Overloaded Moves . | . . . . . . . . . . . Propulsion Burnouts . | . . . . . . . . . . . Robots Hopped 1 | . . 1 . . . . . . . . Potential Cave-ins . | . . . . . . . . . . . Cave-ins Triggered . | . . . . . . . . . . . Exploration Rate (%) 29 | 4 42 23 8 90 9 30 4 93 9 8 Regions Visited 10 Branch Regions 3 Pre-discovered Areas 2 | . . . . . . 1 1 . . . Known Exits Taken 2 | . . . . . . . 1 . 1 . Unknown Exits Taken 7 | 1 1 1 1 1 1 1 . . . . Scrap Searched . | . . . . . . . . . . . Spaces Dug 16 | . 1 2 . . . 8 2 . 1 2 Terrain Destroyed 31 | 2 1 2 . . . 8 2 12 2 2 Melee 15 | . 1 2 . . . 8 2 . . 2 Projectile 14 | . . . . . . . . 12 2 . AOE 2 | 2 . . . . . . . . . . Terrain Rammed . | . . . . . . . . . . . Walls Destroyed . | . . . . . . . . . . . Machines Disabled . | . . . . . . . . . . . Actions | -11 -10 -9 -9 -9 -8 -8 -7 -7 -7 -7 --------- Run | Yrd Mat Mat Min Exi Min Mat Fac Gar Fac Gar Total 5104 | 105 269 526 43 687 68 629 248 1878 517 134 Wait 1100 | . 38 170 25 18 27 293 72 306 125 26 Move 3537 | 92 197 269 18 654 40 307 161 1358 363 78 Hop 1 | . . 1 . . . . . . . . Pick Up 43 | 2 6 6 . 7 . 4 1 15 2 . Fast Attach 32 | 1 1 6 . 1 . 2 4 7 8 2 Attach 13 | . . 2 . 1 . 1 1 4 . 4 Detach 7 | . 1 . . . 1 . 1 . 3 1 Swap 26 | . 3 11 . . . 3 . 6 3 . Drop 65 | . 6 18 . 6 . 4 3 19 9 . Fire 125 | 10 2 14 . . . . . 94 4 1 Melee 105 | . 15 29 . . . 15 5 19 . 22 Ram . | . . . . . . . . . . . Kick . | . . . . . . . . . . . Crush . | . . . . . . . . . . . Escape Stasis 44 | . . . . . . . . 44 . . Rewire 6 | . . . . . . . . 6 . . Trap . | . . . . . . . . . . . Miscellaneous . | . . . . . . . . . . . Route ------- -11/Scrapyard -10/Materials (discovered 2 exits: *Mat / [*Min]) -9/Materials -9/Mines -9/Exiles -8/Mines -8/Materials -7/Factory -7/Garrison (discovered 3 exits: *Fac x3) -7/Factory -7/Garrison History --------- Turn | Location | Event 10 | -11/Scrapyard | Discovered new exit (range 3) 145 | -11/Scrapyard | Entered Materials 302 | -10/Materials | Build established: Mutant 340 | -10/Materials | Discovered new exit (range 3) 462 | -10/Materials | Discovered new exit (range 16) 482 | -10/Materials | Entered another Materials area 482 | -9/Materials | Evolved 2 slots: Utility x2 612 | -9/Materials | Destroyed 11 combat bots 905 | -9/Materials | Build established: Scavenger-Mutant 1193 | -9/Materials | Discovered new exit (range 14) 1236 | -9/Materials | Entered Mines 1262 | -9/Mines | Discovered new exit (range 14) 1267 | -9/Mines | Deemed a non-threat by the Exiles lab entrance 1268 | -9/Mines | Entered Exiles 1296 | -9/Exiles | Met 8R-AWN 1302 | -9/Exiles | Met EX-HEX 1314 | -9/Exiles | Met EX-BIN 1320 | -9/Exiles | Aligned with FarCom system 1320 | -9/Exiles | Given EX-Vault access code 1342 | -9/Exiles | Opened EX-Vault 1349 | -9/Exiles | Found Flying Fortress v7 1362 | -9/Exiles | Warned to stay clear of 0b10 Research branches 1373 | -9/Exiles | Met EX-DEC 1396 | -9/Exiles | Visited The Gauntlet 1431 | -9/Exiles | Build established: Mutant 1660 | -9/Exiles | Discovered new exit (range 11) 1672 | -9/Exiles | Left Exiles lab with Flying Fortress v7 1672 | -9/Exiles | Entered Mines 1734 | -8/Mines | Discovered new exit (range 8) 1743 | -8/Mines | Entered Materials 1743 | -8/Materials | Evolved 2 slots: Propulsion x2 2240 | -8/Materials | Discovered new exit (range 6) 2242 | -8/Materials | Entered Factory 2242 | -7/Factory | Evolved 2 slots: Utility x2 2308 | -7/Factory | Repaired Imp. Terrain Scanner 2416 | -7/Factory | Identified exit to Garrison 2418 | -7/Factory | Entered Garrison 2460 | -7/Garrison | Triggered checkpoint 2524 | -7/Garrison | Garrison Relay disabled 2565 | -7/Garrison | Triggered checkpoint 2727 | -7/Garrison | Found embedded Infiltrators 2731 | -7/Garrison | Discovered new exit (range 13) 2770 | -7/Garrison | Triggered checkpoint 2862 | -7/Garrison | Garrison Relay disabled 2880 | -7/Garrison | Triggered checkpoint 2926 | -7/Garrison | Build established: Scavenger-Mutant 3063 | -7/Garrison | Garrison Relay disabled 3082 | -7/Garrison | Discovered new exit (range 12) 3104 | -7/Garrison | Triggered checkpoint 3478 | -7/Garrison | Discovered new exit (range 14) 3492 | -7/Garrison | Garrison Relay disabled 3650 | -7/Garrison | Triggered checkpoint 3752 | -7/Garrison | Installed Relay Interface Framework 3801 | -7/Garrison | Garrison Relay disabled 3822 | -7/Garrison | Triggered checkpoint 3845 | -7/Garrison | Build established: Scavenger-Skirmisher 4125 | -7/Garrison | Entered Factory 4125 | -7/Factory | Accompanied by 2 allies 4686 | -7/Factory | Identified exit to Garrison 4686 | -7/Factory | Entered Garrison 4759 | -7/Garrison | Expanded RIF knowledge: Threat Obfuscation 4809 | -7/Garrison | Core integrity fell below 50% 4809 | -7/Garrison | System corruption reached 10% 4840 | -7/Garrison | Core integrity fell below 20% 4860 | -7/Garrison | Destroyed by S-27 Virus with Autogun Last Messages --------------- 04802_ Acquired Great Axe. 04803_ Xenon Bombardment Thruster destroyed. 04805_ Lgt. Nuclear Core destroyed. 04810_ Jacked S-27 Virus... >>parse_system Reading system data... 04811_ Transmission Jammer destroyed. 04821_ Destroyed VTOL Module. 04823_ System corrupted: Heat flow error (+204). 04824_ S-27 Virus destroyed. 04825_ Imp. Flight Unit destroyed. 04829_ S-27 Virus destroyed. 04830_ Acquired 25 matter. 04830_ Remote Datajack destroyed. 04835_ S-27 Virus destroyed. 04836_ Acquired 24 matter. 04840_ P-60 Hacker Shock Rifle severed. 04843_ Destroyed Imp. Heat Sink. 04857_ P-60 Hacker destroyed. 04860_ Acquired Shock Rifle. Map ----- +----------------------------------------------------+ | | | | | | | | | | | ?????????????????????????????????????????????????? | | ?????????????????????????????????????????????????? | | ?????????????????????????????????????????????????? | | ?????????????????????????????????????????????????? | | ?????????????????????????????????????????????????? | | ?????????????????????????????????????????????????? | | ?????????????????????????????????????????????????? | | ?????????????????????????????????????????????????? | | ??????????????????????????????#######????????????? | | ??????????????????????????????# #????????????? | | ??????????????????????????????# #????????????? | | ??????????????????????????????# #????????????? | | ??????????????????????????????# ###????????????? | | ??????????????????????????????# #??????????????? | | ??????????????????????????????# #??????????????? | | ??????????????????????????????# #??????????????? | | ??????????????????????????????# #??????????????? | | ???????????????????????#####??# #??????????????? | | ???????????????????????#"""#??# #??????????????? | | ???????????????????????#"!"#??# #??????????????? | | ???????????????????????#%@"#??# #??????????????? | | ???????????????????????#"s"#??# #??????????????? | | ???????????????????????#[p=#?## #??????????????? | | ???????????????????????##p####" #######????????? | | ????????????????????????#=###"# #????????? | | ????????????????????????# + #????????? | | ????????????????????????# ##### #### #????????? | | ????????????????????????# #???# #??? #????????? | | ????????????????????????# #???# #???? "g???????? | | ????????????????????????# #???# #?????"????????? | | ????????????????????????# #???# #??????????????? | | ????????????????????????# #???# #??????????????? | | ????????????????????????# #???# #??????????????? | | ????????????????????????# #???# #??????????????? | | ????????????????????????# #???#^ #??????????????? | | ????????????????????????# #???# #??????????????? | | ????????????????????????# #???# #??????????????? | | ????????????????????????# #???# #??????????????? | | ????????????????????????# #???# #??????????????? | | ???????????????????????? ???? ???????????????? | | ????????????????????????###??????????????????????? | | ?????????????????????????????????????????????????? | | ?????????????????????????????????????????????????? | | ?????????????????????????????????????????????????? | | ?????????????????????????????????????????????????? | +----------------------------------------------------+ Best States ------------- Heat Dissipation 48 Energy Generation 16 Energy Capacity 290 Matter Stores 300 Matter Capacity 300 Sight Range 16 Terrain Scan Range 16 Terrain Scan Density 285 Jamming Range 12 Evasion (%) 68 Relay Coupler Types 3 Relay Coupler Value 82 Item Schematics ----------------- None Robot Schematics ------------------ None Fabricated ------------ Nothing Repaired ---------- Imp. Terrain Scanner | 40% | -7/Factory Studied --------- None Alien Tech Used ----------------- None Achievements -------------- A Problem For Future Me Sixth Sense You Will Be Upgraded Challenges ------------ None Game ------ Seed IntegrityGlidesysBeam Manual? 0 Play Time 01:17:07 Cumulative 151.1 hours Start 2025.10.31 @ 22:31:25 End 2025.10.31 @ 23:56:49 Sessions 1 Manual Loads 0 Difficulty Rogue Special Mode None Game No. 155 Rogue 153 Adventurer 2 Explorer 0 Win Type - Total 0 Types 0/0/0/0/0/0/0/0/0/0 Lore% 64 Gallery% 56 Achievement% 29 Wizard Run 0 Options --------- Layout 2 ASCII 0 Keyboard 1 Movement Vi Keybinds 0 Fullscreen 1 Font 42/SmallcapsLarge Map View 59x48 Zoom Use 8% Tactical HUD 1 Map Filters NONE Filters NONE Steam 1 RUN: 766d356a-30c3-49d8-9782-0207942a6bc4